bitfinex/quotes_ETHUSD_20260114
["timestamp","ask_amount","ask_price","bid_price","bid_amount"]
[1768414643864,0.128,3331.1,3327.7,1.24355768]
[1768414644084,3.00202929,3331.1,3328.0,1.24355768]
[1768414644365,0.407,3331.0,3328.2,1.24355768]
[1768414644518,12.00624324,3331.6,3328.2,1.24355768]
[1768414644519,0.407,3331.1,3328.2,1.24355768]
[1768414644951,0.407,3331.1,3328.3,1.24355768]
[1768414645329,6.00312162,3331.6,3328.7,6.55667401]
[1768414645529,3.60202299,3331.5,3329.1,1.24355768]
[1768414645838,0.406,3331.9,3329.0,15.01952535]
[1768414645839,3.40731345,3331.9,3329.3,1.24355768]
[1768414646043,6.4086269,3331.9,3329.5,1.24355768]
[1768414646528,9.40994035,3331.9,3329.5,1.24355768]
[1768414646731,9.40994035,3331.9,3329.7,1.24355768]
[1768414646732,6.0026269,3331.9,3329.7,1.24355768]
[1768414647048,0.60026269,3331.8,3329.9,1.24355768]
[1768414647630,3.00147072,3331.7,3330.0,6.006006]
[1768414647815,6.00294144,3331.7,3330.1,1.24355768]
[1768414648458,0.03008619,3331.6,3330.1,1.24355768]
[1768414648650,9.00441216,3331.7,3329.7,4.24675659]
[1768414648953,0.03008619,3331.5,3329.7,1.24355768]
[1768414649328,1.26061013,3331.6,3329.7,1.24355768]
[1768414649525,1.26061013,3331.6,3329.9,1.24355768]
[1768414649722,1.26061013,3331.6,3329.9,4.24665086]
[1768414649723,6.0033018,3331.5,3329.9,4.24665086]
[1768414649928,6.0033018,3331.5,3330.0,1.24355768]
[1768414650124,0.72639119,3331.4,3330.0,1.24355768]
[1768414651139,0.03008619,3331.3,3330.0,1.24355768]
[1768414651330,0.72639119,3331.4,3330.0,1.24355768]
[1768414651747,9.00549333,3331.3,3330.0,1.24355768]
[1768414651943,0.03008619,3331.2,3330.1,3.00290917]
[1768414652148,0.60337484,3331.1,3330.0,4.24654616]
[1768414652319,0.60337484,3331.1,3330.0,1.24355768]
[1768414652649,0.03008619,3331.0,3330.0,1.24355768]
[1768414652842,0.60337484,3331.1,3330.2,1.24355768]
[1768414653020,9.1297103,3332.7,3330.2,1.24355768]
[1768414653226,0.406,3332.6,3330.2,1.24355768]
[1768414653426,3.00075018,3332.5,3330.2,1.24355768]
[1768414653833,3.00075018,3332.5,3330.2,1.64055768]
[1768414653834,0.001,3331.0,3330.2,1.64055768]
[1768414654035,0.001,3331.0,3330.2,4.64337228]
[1768414654529,0.001,3331.0,3330.3,1.24355768]
[1768414655352,0.001,3331.0,3330.4,1.24355768]
[1768414655753,0.001,3331.0,3330.6,1.24355768]
[1768414655954,0.21743324,3333.1,3331.0,1.24355768]
[1768414656157,6.00166286,3333.0,3331.1,0.397]
[1768414656342,0.03008619,3332.9,3331.2,0.397]
[1768414656543,0.6031749,3332.8,3331.3,0.397]
[1768414656943,0.001,3333.0,3331.4,1.24355768]
[1768414657437,0.001,3333.0,3331.5,0.397]
[1768414657636,6.00160057,3333.0,3331.6,0.397]
[1768414657853,0.03008619,3332.9,3330.8,1.24355768]
[1768414658031,0.001,3333.0,3330.9,0.397]
[1768414658229,0.001,3333.0,3330.4,6.00528464]
[1768414658230,1.23671529,3333.0,3330.4,6.00528464]
[1768414658435,1.2056291,3332.8,3330.4,6.00528464]
[1768414658736,1.2056291,3332.8,3330.5,0.397]
[1768414659649,1.2056291,3332.8,3330.6,0.03002462]
[1768414660048,9.0017103,3332.7,3330.7,6.00474374]
[1768414660244,1.02073394,3332.6,3330.8,0.03002281]
[1768414660734,1.02073394,3332.6,3330.7,6.00474374]
[1768414660940,1.02073394,3332.6,3330.8,0.397]
[1768414661347,1.05082013,3332.6,3330.8,0.397]
[1768414661675,1.02073394,3332.6,3330.8,0.397]
[1768414661849,9.0017103,3332.7,3330.8,0.397]
[1768414661850,1.03233061,3332.5,3330.8,0.397]
[1768414662045,6.00168046,3332.4,3330.9,3.00219159]
[1768414662641,6.00168046,3332.4,3331.0,0.397]
[1768414664159,1.2056291,3333.5,3331.2,1.24355768]
[1768414664360,1.2056291,3334.0,3331.4,1.24355768]
[1768414664596,0.30741169,3336.1,3331.4,1.24355768]
[1768414664597,1.2056291,3334.5,3331.4,1.24355768]
[1768414664751,3.30498808,3336.1,3331.4,1.24355768]
[1768414664752,1.2056291,3335.0,3332.2,1.24355768]
[1768414665070,1.2056291,3335.0,3332.4,1.24355768]
[1768414665276,1.2056291,3335.0,3332.3,0.397]
[1768414665277,1.2056291,3335.0,3332.6,1.24355768]
[1768414666042,1.2056291,3335.0,3332.5,0.16405577]
[1768414666043,5.99718132,3334.9,3332.8,1.24355768]
[1768414666777,5.9962823,3335.4,3333.0,1.24355768]
[1768414667163,2.99814115,3335.4,3333.0,1.24355768]
[1768414667367,2.99760191,3336.0,3333.2,1.24355768]
[1768414667549,0.4420318,3335.9,3333.2,1.24355768]
[1768414668275,0.4420318,3335.9,3333.4,1.24355768]
[1768414668480,0.4420318,3335.9,3333.5,1.24355768]
[1768414668689,5.99358686,3336.9,3334.0,1.24355768]
[1768414668879,11.98717372,3336.9,3334.2,1.24355768]
[1768414669048,10.19600939,3336.9,3334.3,0.396]
[1768414669250,10.19600939,3336.9,3334.4,1.24355768]
[1768414669885,1.2056291,3336.8,3333.8,1.24355768]
[1768414670045,1.2056291,3336.6,3333.9,1.63955768]
[1768414670250,1.2056291,3336.6,3334.0,6.39480022]
[1768414670251,8.9914581,3336.5,3334.0,6.39480022]
[1768414670676,8.9914581,3336.5,3334.1,1.23623493]
[1768414670677,5.9943054,3336.5,3334.1,1.23623493]
[1768414671061,1.24487686,3336.4,3334.1,1.23623493]
[1768414671259,1.24487686,3336.4,3334.2,0.396]
[1768414671474,1.32334877,3336.3,3334.2,0.396]
[1768414672248,8.99226663,3336.2,3334.2,2.9992202]
[1768414672451,5.99484442,3336.2,3334.3,0.396]
[1768414672663,8.99226663,3336.2,3334.3,0.396]
[1768414672865,8.99226663,3336.2,3334.4,0.396]
[1768414673065,1.15604923,3336.1,3334.4,0.396]
[1768414673286,1.15604923,3336.1,3334.2,2.9992202]
[1768414673287,1.18613542,3336.1,3334.5,0.396]
[1768414673467,1.15604923,3336.1,3334.5,0.396]
[1768414674390,5.99520382,3336.0,3334.5,3.39490485]
[1768414674689,2.99760191,3336.0,3334.5,3.39490485]
[1768414674891,2.99661382,3337.1,3334.7,1.23623493]
[1768414675090,5.99322764,3337.1,3334.7,1.23623493]
[1768414675393,0.001,3337.2,3334.9,1.23623493]
[1768414675690,2.99754434,3337.2,3334.9,1.23623493]
[1768414675856,2.99754434,3337.2,3335.1,1.23623493]
[1768414675857,0.59939137,3337.1,3335.1,1.23623493]
[1768414676058,5.99407324,3337.2,3335.3,1.23623493]
[1768414676289,5.99407324,3337.2,3335.5,2.99805126]
[1768414676290,0.001,3337.2,3335.5,2.99805126]
[1768414676660,0.001,3337.2,3335.5,5.99610252]
[1768414676988,0.001,3337.2,3335.6,1.23623493]
[1768414677190,0.001,3337.2,3335.7,0.396]
[1768414677397,0.001,3337.2,3335.8,0.50354626]
[1768414678193,0.001,3337.2,3336.0,1.23623493]
[1768414678523,0.001,3336.9,3336.0,1.23623493]
[1768414679792,0.001,3336.9,3336.1,0.396]
[1768414680157,0.001,3336.9,3336.2,2.99742221]
[1768414680460,0.001,3336.9,3336.2,5.99484442]
[1768414680662,0.001,3336.9,3336.0,1.23623493]
[1768414680862,0.001,3336.9,3336.1,0.396]
[1768414681258,0.001,3336.9,3336.2,0.02997422]
[1768414681488,0.001,3336.9,3336.1,3.39349135]
[1768414681992,0.001,3336.9,3336.1,2.99749135]
[1768414682192,0.001,3336.9,3336.3,5.99466474]
[1768414682784,0.001,3336.9,3336.2,2.99738479]
[1768414682997,0.001,3336.9,3336.3,0.396]
[1768414683305,0.001,3336.9,3335.5,1.23623493]
[1768414683485,0.001,3336.9,3335.0,1.23623493]
[1768414683678,0.001,3336.9,3335.7,2.99786334]
[1768414683868,0.001,3336.9,3335.8,3.39377736]
[1768414684191,0.001,3336.9,3336.1,2.9974514]
[1768414684492,0.001,3336.9,3335.6,2.99795462]
[1768414684696,0.001,3336.9,3335.7,0.396]
[1768414684909,0.001,3336.9,3335.8,0.396]
[1768414686310,0.001,3336.9,3335.7,2.99785466]
[1768414686612,0.001,3336.9,3335.9,0.396]
[1768414687011,0.001,3336.9,3335.7,5.99572617]
[1768414687213,1.24587686,3336.9,3334.4,1.23623493]
[1768414687430,1.24587686,3336.9,3334.5,0.396]
[1768414687582,1.24587686,3336.9,3335.5,2.99803222]
[1768414687788,1.24587686,3336.9,3335.6,0.396]
[1768414687982,1.24587686,3336.9,3335.6,3.39395009]
[1768414688545,5.99376648,3336.8,3335.6,3.39395009]
[1768414688714,0.72396433,3336.7,3335.6,0.396]
[1768414689316,0.72396433,3336.7,3334.1,1.23623493]
[1768414689317,1.24487686,3336.6,3334.1,1.23623493]
[1768414689618,1.24487686,3336.6,3334.9,2.99853257]
[1768414689782,1.24487686,3336.6,3334.8,2.99866735]
[1768414689981,1.24487686,3336.6,3334.1,1.23623493]
[1768414689982,1.24487686,3336.6,3334.9,0.396]
[1768414690226,1.24487686,3336.4,3334.9,0.396]
[1768414690379,1.39563742,3336.5,3335.0,0.396]
[1768414690380,10.23687397,3336.3,3335.0,0.396]
[1768414690584,1.24487686,3336.2,3334.9,0.396]
[1768414691515,2.99733237,3336.3,3334.9,0.396]
[1768414692011,5.99466474,3336.3,3334.9,0.396]
[1768414692312,0.59946647,3336.2,3334.9,0.396]
[1768414692518,5.99502412,3336.1,3334.9,3.3945601]
[1768414693911,0.59946647,3336.2,3334.9,6.39315076]
[1768414694110,5.9943054,3336.5,3334.9,6.39315076]
[1768414694608,0.001,3336.6,3334.9,6.39315076]
[1768414694913,0.001,3336.6,3335.0,1.26621993]
[1768414695113,0.001,3336.6,3335.1,0.0299841]
[1768414695317,0.001,3336.6,3335.1,1.23623493]
[1768414695835,0.001,3336.6,3335.1,1.26621903]
[1768414696206,0.001,3336.6,3335.2,0.396]
[1768414696729,0.001,3336.6,3335.5,1.23623493]
[1768414697101,0.001,3336.6,3335.6,0.02997961]
[1768414697304,0.001,3336.6,3335.7,0.396]
[1768414697637,0.001,3336.6,3335.8,0.16322349]
[1768414698498,0.001,3337.2,3335.9,0.02997691]
[1768414698696,0.001,3337.2,3335.9,8.99307531]
[1768414698896,0.001,3337.2,3335.9,5.99538354]
[1768414699093,0.001,3337.2,3336.0,0.6554607]
[1768414699427,0.001,3337.2,3336.0,1.89169563]
[1768414700435,0.001,3337.2,3336.1,0.396]
[1768414700630,0.001,3337.2,3336.3,2.99733237]
[1768414700806,0.001,3337.2,3336.3,5.99466474]
[1768414701011,0.001,3337.2,3336.4,0.365239]
[1768414702020,0.001,3337.2,3336.5,2.9971527]
[1768414702323,0.001,3336.9,3336.5,2.9971527]
[1768414702699,0.001,3336.9,3336.4,0.365239]
[1768414702700,0.001,3336.9,3336.4,3.36245807]
[1768414703246,0.001,3336.9,3335.6,2.99790409]
[1768414703590,0.001,3336.9,3335.0,1.21660492]
[1768414703712,1.21729281,3336.9,3335.7,2.99786571]
[1768414703913,1.21729281,3336.9,3335.8,3.39376577]
[1768414704308,5.99376648,3336.8,3335.8,0.396]
[1768414704537,0.75119212,3336.7,3335.8,0.396]
[1768414704744,0.72110593,3336.7,3335.8,0.396]
[1768414704897,0.03008619,3336.6,3335.8,0.396]
[1768414705103,0.72110593,3336.7,3335.8,3.39376084]
[1768414705405,5.99463166,3336.9,3335.8,3.39376084]
[1768414705750,2.99781583,3336.9,3335.8,3.39376084]
[1768414706533,0.001,3336.9,3335.8,3.39376084]
[1768414706927,0.001,3336.9,3335.9,0.02997691]
[1768414707126,0.001,3336.9,3335.9,1.21660492]
[1768414707329,0.001,3336.9,3336.0,0.396]
[1768414707729,0.001,3336.9,3335.7,2.99785874]
[1768414708045,0.001,3336.9,3335.8,0.396]
[1768414709717,0.03108619,3336.9,3335.8,0.396]
[1768414710046,0.001,3336.9,3335.8,0.396]
[1768414710831,1.05189962,3336.9,3335.8,0.396]
[1768414711025,1.02181343,3336.9,3335.3,2.99819502]
[1768414711230,1.02181343,3336.9,3335.5,2.99799831]
[1768414711545,1.02181343,3336.9,3335.6,0.396]
[1768414711743,1.02181343,3336.9,3335.6,3.39393743]
[1768414711923,1.02181343,3336.9,3335.7,2.99785478]
[1768414712247,1.02181343,3336.9,3334.6,1.21660492]
[1768414712248,1.246379,3336.8,3334.6,1.21660492]
[1768414712444,1.246379,3336.8,3335.2,2.99826591]
[1768414712610,1.21629281,3336.6,3334.8,5.99736116]
[1768414712814,1.21629281,3336.6,3334.9,0.396]
[1768414713016,1.0207212,3336.5,3335.0,0.63933612]
[1768414713647,7.21077787,3336.4,3335.0,0.63933612]
[1768414713952,1.49181074,3336.3,3334.9,0.396]
[1768414714246,1.21629281,3336.3,3335.6,0.002]
[1768414714443,1.21629281,3336.3,3334.9,0.396]
[1768414714747,1.21629281,3336.3,3335.3,0.002]
[1768414714930,2.33916697,3336.2,3335.3,0.002]
[1768414715522,5.99502412,3336.1,3335.3,0.002]
[1768414716455,1.21629281,3336.0,3335.3,0.002]
[1768414716646,1.21629281,3336.0,3334.6,0.396]
[1768414716817,1.21629281,3336.0,3334.5,2.9989187]
[1768414717017,1.21629281,3335.8,3334.5,3.39492141]
[1768414718049,5.99574302,3335.7,3334.5,0.396]
[1768414718345,5.99574302,3335.7,3334.4,0.396]
[1768414718576,5.99574302,3335.7,3334.4,3.39498919]
[1768414718716,5.99574302,3335.7,3334.4,0.396]
[1768414718919,1.13833271,3335.6,3334.2,1.21660492]
[1768414719221,1.13833271,3335.6,3334.4,0.396]
[1768414719428,1.13833271,3335.6,3333.1,3.00015266]
[1768414719429,1.21629281,3335.5,3333.7,1.21660492]
[1768414719877,1.21629281,3335.4,3333.8,0.396]
[1768414720156,1.21629281,3335.4,3334.0,2.99939614]
[1768414720322,5.99664188,3335.2,3333.9,3.00149008]
[1768414720718,5.99664188,3335.2,3333.9,0.002]
[1768414720719,7.21293469,3335.2,3333.9,0.002]
[1768414721542,0.27576255,3335.3,3333.9,1.21860492]
[1768414721757,2.99796138,3335.6,3333.9,1.21860492]
[1768414722057,5.99592276,3335.6,3333.9,1.21860492]
[1768414722365,7.21203583,3335.7,3334.0,5.99880022]
[1768414723753,7.21203583,3335.7,3334.1,0.396]
[1768414723957,1.246379,3335.6,3333.9,0.002]
[1768414724354,1.21629281,3335.6,3333.9,0.002]
[1768414725256,1.21629281,3335.6,3333.9,6.0009294]
[1768414725438,1.21629281,3335.6,3334.0,1.24659892]
[1768414725644,6.33543103,3335.9,3334.0,1.24659892]
[1768414725860,1.09522954,3335.8,3334.1,1.21660492]
[1768414726090,5.99574302,3335.7,3334.2,6.3944404]
[1768414726574,5.99574302,3335.7,3334.2,6.3964404]
[1768414726739,1.21629281,3335.6,3334.3,0.396]
[1768414727369,1.21629281,3335.6,3334.2,3.0012202]
[1768414727670,1.21629281,3335.4,3334.2,3.3972202]
[1768414728267,2.99823104,3335.3,3334.2,3.3972202]
[1768414728770,1.25214297,3335.5,3334.2,6.3964404]
[1768414728961,2.99796138,3335.6,3334.2,6.3964404]
[1768414729160,5.99598861,3335.6,3334.2,6.3964404]
[1768414729663,2.99796138,3335.6,3334.2,6.3964404]
[1768414729970,2.99779998,3335.8,3334.3,0.0299913]
[1768414730372,2.99779998,3335.8,3334.4,5.9980806]
[1768414730548,0.79558456,3335.7,3334.5,0.0299895]
[1768414730747,0.79558456,3335.7,3334.4,5.9980806]
[1768414731473,0.79558456,3335.7,3334.4,10.16465099]
[1768414731674,0.001,3335.9,3334.5,1.16753009]
[1768414732400,1.18115816,3336.7,3334.8,1.16753009]
[1768414732679,2.99691381,3336.8,3335.0,1.16753009]
[1768414732846,0.75788001,3336.8,3335.2,1.16753009]
[1768414733050,2.99676545,3337.0,3335.2,1.16753009]
[1768414733247,2.99758501,3337.2,3335.2,1.16753009]
[1768414733545,2.99758501,3337.2,3335.1,0.1593516]
[1768414733546,2.99676794,3337.0,3335.5,1.16753009]
[1768414733768,2.99666565,3337.1,3335.6,1.16753009]
[1768414734077,2.99666565,3337.1,3335.7,1.56353009]
[1768414734273,2.99755888,3337.2,3335.7,1.56353009]
[1768414734460,0.001,3337.2,3335.8,5.99556328]
[1768414735780,0.001,3337.2,3336.0,1.16753009]
[1768414735977,0.001,3337.7,3336.5,1.16753009]
[1768414736154,0.001,3337.7,3336.6,0.396]
[1768414736698,0.001,3337.7,3336.7,5.9939461]
[1768414737404,1.18215816,3337.7,3335.3,1.16753009]
[1768414737603,1.18215816,3337.7,3333.8,5.01644871]
[1768414737604,1.18115816,3337.5,3336.1,2.9974986]
[1768414737882,1.18115816,3337.5,3335.8,2.99776479]
[1768414737883,1.18115816,3337.3,3336.0,0.396]
[1768414738053,1.21124435,3337.2,3336.0,0.396]
[1768414738245,1.18115816,3337.6,3336.3,2.997276]
[1768414738448,1.18115816,3337.6,3336.0,0.396]
[1768414738680,0.001,3337.4,3336.2,2.99742221]
[1768414738877,0.001,3337.4,3336.2,5.99484442]
[1768414739687,0.001,3337.4,3336.2,2.99742221]
[1768414739890,0.001,3337.4,3336.3,0.396]
[1768414741350,0.001,3337.4,3336.4,2.99724253]
[1768414741553,1.18215816,3337.4,3335.4,1.16753009]
[1768414741867,1.18115816,3337.2,3335.5,0.396]
[1768414742364,1.18115816,3337.2,3335.9,2.9976559]
[1768414742748,1.18115816,3337.2,3335.5,3.39396851]
[1768414742955,1.18115816,3337.2,3335.4,1.16753009]
[1768414742956,0.03008619,3337.1,3335.6,2.99788354]
[1768414743186,1.21124435,3337.1,3335.7,3.39385414]
[1768414743690,5.99340724,3337.0,3335.7,3.39385414]
[1768414743858,1.0171098,3336.9,3335.7,6.39172565]
[1768414744575,1.0171098,3336.9,3335.7,3.39385414]
[1768414745766,2.99688324,3336.8,3335.7,3.39385414]
[1768414746677,5.99376648,3336.8,3335.7,3.39385414]
[1768414746852,5.99376648,3336.8,3335.0,1.16753009]
[1768414746853,1.18115816,3336.7,3335.0,1.16753009]
[1768414747057,1.18115816,3336.7,3335.5,2.99798562]
[1768414747058,1.88224579,3336.7,3335.5,2.99798562]
[1768414747387,1.88224579,3336.7,3335.6,3.3939507]
[1768414747682,1.88224579,3336.7,3335.6,0.396]
[1768414747884,5.99412574,3336.6,3335.6,0.396]
[1768414748188,2.99739143,3337.4,3336.1,1.16753009]
[1768414748189,0.001,3337.4,3336.1,1.16753009]
[1768414748362,0.001,3337.4,3336.2,1.59350431]
[1768414749988,0.001,3337.4,3336.3,8.99199711]
[1768414750185,0.001,3337.4,3336.4,0.02997242]
[1768414750378,0.001,3337.4,3336.5,1.16753009]
[1768414751256,0.001,3337.7,3336.6,0.02997062]
[1768414751489,0.001,3337.7,3336.7,0.396]
[1768414751687,0.001,3337.7,3336.7,1.56353009]
[1768414752186,0.001,3337.7,3336.9,5.99358686]
[1768414754694,0.001,3337.7,3337.0,0.396]
[1768414755901,0.001,3337.7,3337.0,1.56353009]
[1768414756064,2.99490865,3339.0,3337.1,1.19749622]
[1768414756263,1.18115816,3338.9,3337.4,5.9926889]
[1768414756463,6.44772398,3339.0,3337.5,0.396]
[1768414756464,1.18115816,3338.7,3337.5,0.396]
[1768414758300,5.99071438,3338.5,3337.6,0.396]
[1768414758604,2.99535719,3338.5,3337.6,0.396]
[1768414758897,0.71717981,3338.4,3337.6,3.39216003]
[1768414759670,0.71717981,3338.4,3337.6,0.396]
[1768414759900,5.99071438,3338.5,3337.6,0.396]
[1768414760310,5.99053494,3338.6,3337.6,0.396]
[1768414761010,5.99053494,3338.6,3336.5,2.99712985]
[1768414761011,1.66391172,3338.5,3336.5,2.99712985]
[1768414761211,1.23082553,3338.4,3336.6,0.396]
[1768414761383,1.23082553,3338.2,3336.6,0.396]
[1768414761799,1.23082553,3338.2,3337.1,2.99657664]
[1768414762006,1.23082553,3338.2,3337.2,0.396]
[1768414762533,1.23082553,3338.0,3336.4,1.22100672]
[1768414762685,1.23082553,3337.8,3336.4,2.9972228]
[1768414763016,1.23082553,3337.8,3336.5,0.396]
[1768414763593,1.23082553,3337.8,3336.6,2.99701232]
[1768414764113,1.23082553,3337.8,3336.5,2.9971258]
[1768414764419,1.23082553,3337.4,3336.0,0.002]
[1768414764927,1.23082553,3337.4,3336.1,0.396]
[1768414765905,1.23082553,3337.4,3336.0,0.398]
[1768414766710,1.23082553,3337.2,3336.0,0.002]
[1768414768718,1.23082553,3337.0,3336.0,0.002]
[1768414769014,1.0220667,3336.9,3336.0,0.002]
[1768414769638,1.23082553,3336.8,3335.6,0.002]
[1768414769916,1.23082553,3336.6,3334.7,2.9987089]
[1768414770119,1.23082553,3336.4,3334.7,0.396]
[1768414770413,1.23082553,3336.2,3334.7,3.39475812]
[1768414770617,1.23082553,3336.2,3334.7,0.396]
[1768414771133,1.76917446,3336.0,3334.7,3.24676674]
[1768414771314,1.76917446,3336.0,3334.7,6.24553724]
[1768414771506,0.77641986,3335.9,3334.7,6.24553724]
[1768414771709,0.77641986,3335.9,3334.7,7.46654396]
[1768414772120,0.77641986,3335.9,3334.8,1.22100672]
[1768414773233,5.99556328,3335.8,3334.8,1.22100672]
[1768414774119,5.99556328,3335.8,3335.0,0.002]
[1768414774324,0.85411576,3335.7,3335.0,0.002]
[1768414775611,3.8520097,3335.7,3335.0,0.002]
[1768414778239,6.84990364,3335.7,3335.0,0.002]
[1768414778402,6.84990364,3335.7,3334.0,2.99938192]
[1768414778403,1.23082553,3335.6,3334.0,2.99938192]
[1768414778589,2.74168784,3335.5,3333.8,1.22100672]
[1768414778929,2.74168784,3335.5,3333.8,4.22050469]
[1768414779085,2.74168784,3335.5,3333.9,3.00148203]
[1768414779509,5.9962823,3335.4,3333.9,3.00149008]
[1768414779904,1.23082553,3335.3,3333.9,0.398]
[1768414782042,5.99664188,3335.2,3333.9,0.398]
[1768414782208,1.02256086,3335.1,3333.9,3.39747829]
[1768414783216,1.02256086,3335.1,3333.9,0.398]
[1768414784022,5.99700148,3335.0,3333.9,0.398]
[1768414784600,2.99850074,3335.0,3334.0,1.22100672]
[1768414784795,5.99700148,3335.0,3334.0,1.22100672]
[1768414785001,6.82204027,3335.0,3334.0,1.22100672]
[1768414785626,3.82353953,3335.0,3334.0,1.22100672]
[1768414785920,2.99781173,3335.8,3334.2,1.22300672]
[1768414786101,0.001,3335.4,3334.4,1.22100672]
[1768414786424,0.001,3335.4,3334.6,1.22100672]
[1768414786626,0.001,3335.4,3334.8,1.22100672]
[1768414787333,0.001,3335.4,3334.8,1.38270739]
[1768414789509,0.001,3335.4,3334.9,2.99859066]
[1768414789705,19.05,3337.2,3334.9,2.99859066]
[1768414789706,2.25289223,3336.9,3335.1,1.22100672]
[1768414789900,1.0220667,3336.9,3335.1,1.22100672]
[1768414790100,1.23082553,3337.2,3335.0,0.396]
[1768414790101,0.403,3337.0,3335.3,1.22100672]
[1768414790300,2.99661382,3337.1,3335.3,1.22100672]
[1768414790823,5.99322764,3337.1,3335.3,1.22100672]
[1768414791729,5.99304806,3337.2,3335.5,1.16874905]
[1768414791932,5.99304806,3337.2,3335.7,1.16874905]
[1768414792228,0.93924351,3337.1,3335.8,1.16874905]
[1768414793031,0.93924351,3337.1,3336.0,1.16874905]
[1768414793225,3.39925468,3337.5,3336.2,1.16874905]
[1768414793535,2.99625468,3337.5,3336.2,1.16874905]
[1768414793916,5.99257846,3337.5,3336.2,1.16874905]
[1768414794316,0.63955785,3337.4,3336.2,1.16874905]
[1768414795112,3.63592091,3337.4,3336.4,1.16874905]
[1768414795521,6.63228397,3337.4,3336.4,1.16874905]
[1768414796145,3.63592091,3337.4,3336.4,1.16874905]
[1768414796846,0.63955785,3337.4,3336.4,1.16874905]
[1768414797141,3.6359204,3337.4,3336.5,2.9971527]
[1768414797339,3.39917646,3337.6,3336.6,1.16874905]
[1768414797771,5.99143224,3338.1,3336.7,1.16874905]
[1768414797936,0.001,3337.2,3336.7,1.16874905]
[1768414799472,0.001,3337.2,3336.7,4.16569065]
[1768414799880,0.001,3337.2,3336.6,0.396]
[1768414800169,0.001,3337.2,3336.5,0.396]
[1768414800534,0.001,3337.2,3336.5,3.39313699]
[1768414800961,0.001,3337.2,3336.6,2.99705229]
[1768414801177,0.001,3337.2,3336.6,1.16874905]
[1768414801443,0.001,3337.2,3336.9,2.99679343]
[1768414801742,0.001,3337.2,3336.8,1.16874905]
[1768414802145,0.001,3337.2,3336.8,4.16560144]
[1768414802341,10.29,3338.3,3337.2,1.16874905]
[1768414802542,1.11539877,3338.9,3337.2,1.16874905]
[1768414802543,1.11539877,3338.9,3337.3,1.16874905]
[1768414802740,0.403,3338.7,3337.3,1.16874905]
[1768414802959,1.11539877,3338.9,3337.3,1.16874905]
[1768414803275,5.98945854,3339.2,3337.7,1.16874905]
[1768414803439,6.39245854,3339.2,3337.8,1.16874905]
[1768414803764,6.39245854,3339.2,3336.7,7.4809097]
[1768414803765,1.14548496,3339.1,3337.5,1.16874905]
[1768414803943,1.11539877,3338.9,3337.4,1.56474905]
[1768414804146,1.11539877,3338.9,3337.5,4.16493278]
[1768414804342,1.3527402,3339.0,3337.6,1.16874905]
[1768414804546,1.3527402,3339.0,3337.9,1.16874905]
[1768414804763,6.39245854,3339.2,3337.9,1.16874905]
[1768414804969,2.99472927,3339.2,3337.9,1.16874905]
[1768414805137,0.403,3339.4,3337.9,1.16874905]
[1768414805333,1.11539877,3339.3,3337.9,1.16874905]
[1768414805556,7.10485731,3339.2,3337.9,1.16874905]
[1768414805763,1.05025153,3339.1,3337.9,1.16874905]
[1768414806237,2.1656503,3339.1,3337.6,1.56474905]
[1768414806438,2.1656503,3339.1,3337.9,2.99587432]
[1768414806748,2.1656503,3339.1,3337.8,2.99596138]
[1768414806749,2.5686503,3339.1,3337.8,4.16469733]
[1768414806974,2.59873649,3339.1,3337.8,1.16874905]
[1768414807261,1.11539877,3338.9,3337.5,1.16874905]
[1768414807466,0.03008619,3338.8,3337.5,1.16874905]
[1768414807668,5.99035552,3338.7,3337.5,1.16874905]
[1768414808438,5.99035552,3338.7,3337.5,4.16499671]
[1768414808749,5.99035552,3338.7,3337.6,1.16874905]
[1768414808963,0.71057543,3338.6,3337.6,1.16874905]
[1768414809167,1.11539877,3338.4,3336.9,1.16874905]
[1768414809538,5.9910733,3338.3,3337.1,2.99660842]
[1768414809737,5.9910733,3338.3,3337.9,0.002]
[1768414809937,5.9910733,3338.3,3337.2,1.16874905]
[1768414809938,0.75094721,3338.2,3337.2,1.16874905]
[1768414810149,2.99545101,3338.4,3337.2,1.16874905]
[1768414810369,3.70591443,3338.6,3337.6,1.17074905]
[1768414810548,2.995339,3338.6,3337.6,1.17074905]
[1768414810738,0.403,3339.0,3337.6,1.17074905]
[1768414810938,2.99601895,3338.9,3337.6,1.17074905]
[1768414811668,5.9910379,3338.9,3337.8,1.16874905]
[1768414812671,2.99601895,3338.9,3337.8,1.16874905]
[1768414812869,5.9910379,3338.9,3337.8,1.16874905]
[1768414813248,0.63940379,3338.8,3337.8,1.16874905]
[1768414813676,5.99035552,3338.7,3337.8,1.16874905]
[1768414815159,3.63451253,3338.8,3337.9,1.16874905]
[1768414815481,6.62962127,3338.8,3337.9,1.16874905]
[1768414815645,3.63451253,3338.8,3337.9,1.16874905]
[1768414815844,0.70335173,3338.7,3337.9,1.16874905]
[1768414816084,3.69856074,3338.7,3337.9,1.16874905]
[1768414817340,1.11539877,3338.6,3337.6,0.002]
[1768414817545,6.69376975,3338.7,3337.6,1.17074905]
[1768414817842,5.99071438,3338.5,3337.6,1.17074905]
[1768414818440,5.99071438,3338.5,3337.6,0.002]
[1768414818842,1.14548496,3338.4,3337.6,0.002]
[1768414819974,5.9910733,3338.3,3337.6,0.002]
[1768414820358,6.02115949,3338.3,3337.6,0.002]
[1768414820559,1.05350318,3338.2,3337.6,0.002]
[1768414821172,5.99143224,3338.1,3337.6,0.002]
[1768414821672,5.99143224,3338.1,3337.0,1.16274905]
[1768414822251,5.99143224,3338.1,3337.9,0.002]
[1768414822571,5.99143224,3338.1,3336.7,3.39294114]
[1768414822572,10.17054887,3338.1,3337.6,0.002]
[1768414822875,1.16270521,3338.0,3336.8,4.09046098]
[1768414823173,1.16270521,3338.0,3336.8,1.09358417]
[1768414823174,5.99179124,3337.9,3336.8,1.09358417]
[1768414823388,1.18340051,3337.8,3336.2,1.09558417]
[1768414823543,8.98768686,3337.9,3336.2,4.48893597]
[1768414823544,1.18340051,3337.6,3336.2,4.48893597]
[1768414823748,0.15864005,3337.5,3336.3,4.09084871]
[1768414824047,0.15864005,3337.5,3336.2,0.398]
[1768414824048,0.15864005,3337.5,3336.4,4.09080698]
[1768414824264,0.15864005,3337.5,3336.6,1.09358417]
[1768414824464,5.99179124,3337.9,3336.8,1.09358417]